[Event "Kragero Resort Chess A 2019"]
[Site "Kragero"]
[Date "2019.02.21"]
[Round "2.16"]
[White "Heimisson, Hilmir Freyr"]
[Black "Wedda, Dries"]
[Result "0-1"]
[ECO "D00"]
[WhiteElo "2394"]
[BlackElo "2173"]
[Annotator "NA"]
[PlyCount "94"]
[EventDate "2019.02.20"]
[EventType "swiss"]
[EventCountry "NOR"]
[SourceTitle "playchess.com"]
[Source "ChessBase"]
[SourceQuality "1"]
[TimeControl "5400+30"]

1. d4 {[%emt 0:00:30]} Nf6 {[%emt 0:00:00]} 2. Nc3 {[%emt 0:00:46]} d5 {[%emt 0:00:08]} 3. Bf4 {[%emt 0:00:06]} a6 {[%emt 0:00:25]} 4. e3 {[%emt 0:00:23]} e6 {[%emt 0:01:02]} 5. Nf3 {[%emt 0:09:49]} b5 {[%emt 0:04:21]} 6. Bd3 {[%emt 0:01:57]} Bb7 {[%emt 0:01:05]} 7. O-O {[%emt 0:18:04]} c5 {[%emt 0:02:42]} 8. dxc5 {[%emt 0:01:18]} Bxc5 {[%emt 0:00:13]} 9. Qe2 {[%emt 0:01:50]} Nbd7 {[%emt 0:29:32]} 10. a3 {[%emt 0:17:15]} Be7 {[%emt 0:07:54]} 11. e4 {[%emt 0:09:23]} Nc5 {[%emt 0:01:54]} 12. e5 {[%emt 0:03:31]} Nfd7 {[%emt 0:05:39]} 13. b4 {[%emt 0:07:33]} Nxd3 {[%emt 0:01:00]} 14. cxd3 {[%emt 0:00:01]} h5 {[%emt 0:17:03]} 15. Be3 {[%emt 0:01:02]} g5 {[%emt 0:08:15]} 16. Bd4 {[%emt 0:07:39]} Nb8 {[%emt 0:06:04]} 17. Qe3 {[%emt 0:00:22]} Nc6 {[%emt 0:02:01]} 18. Nd2 {[%emt 0:01:00]} Rh7 {[%emt 0:02:05]} 19. Nb3 {[%emt 0:00:36]} Rc8 {[%emt 0:01:14]} 20. Rac1 {[%emt 0:00:21]} g4 {[%emt 0:00:52]} 21. Bb6 {[%emt 0:02:50]} d4 {[%emt 0:02:29]} 22. Qe4 {[%emt 0:10:24]} Qxb6 {[%emt 0:00:17]} 23. Nd5 {[%emt 0:00:16]} exd5 {[%emt 0:00:30]} 24. Qxh7 {[%emt 0:00:05]} Nd8 {[%emt 0:01:18]} 25. Qxh5 {[%emt 0:00:36]} Rc3 {[%emt 0:00:48]} 26. Rxc3 {[%emt 0:04:19]} dxc3 {[%emt 0:00:03]} 27. Qxg4 {[%emt 0:00:14]} Ne6 {[%emt 0:01:16]} 28. d4 {[%emt 0:00:44]} Bg5 {[%emt 0:01:19]} 29. h4 {[%emt 0:00:36]} Bh6 {[%emt 0:00:08]} 30. Nc5 {[%emt 0:00:41]} c2 {[%emt 0:00:24]} 31. f4 {[%emt 0:00:22]} Bxf4 {[%emt 0:00:31]} 32. Nxe6 {[%emt 0:00:43]} Be3+ {[%emt 0:00:38]} 33. Kh1 {[%emt 0:00:06]} Qxe6 {[%emt 0:00:08]} 34. Qg8+ {[%emt 0:00:41]} Ke7 {[%emt 0:00:00]} 35. Qb8 {[%emt 0:00:14]} Qc8 {[%emt 0:03:27]} 36. Qd6+ {[%emt 0:00:40]} Ke8 {[%emt 0:00:02]} 37. e6 {[%emt 0:00:38]} Qxe6 {[%emt 0:00:01]} 38. Qb8+ {[%emt 0:00:08]} Bc8 {[%emt 0:00:29]} 39. Qc7 {[%emt 0:00:32]} c1=Q {[%emt 0:00:17]} 40. Rxc1 {[%emt 0:00:04]} Bxc1 {[%emt 0:00:06]} 41. Qxc1 {[%emt 0:00:03]} Qg4 {[%emt 0:00:25]} 42. Qc6+ {[%emt 0:01:21]} Bd7 {[%emt 0:00:08]} 43. Qxd5 {[%emt 0:00:10]} Qxh4+ {[%emt 0:00:06]} 44. Kg1 {[%emt 0:00:03]} Qf4 {[%emt 0:01:04]} 45. Qa8+ {[%emt 0:01:20]} Ke7 {[%emt 0:00:02]} 46. Qxa6 {[%emt 0:00:31]} Qxd4+ {[%emt 0:00:03]} 47. Kh2 {[%emt 0:00:04]} Qd6+ {[%emt 0:00:12]} 0-1

[Event "Kragero Resort Chess A 2019"]
[Site "Kragero"]
[Date "2019.02.21"]
[Round "2.17"]
[White "Bergsson, Stefan"]
[Black "Kaasen, Tor Fredrik"]
[Result "0-1"]
[ECO "B95"]
[WhiteElo "2172"]
[BlackElo "2387"]
[Annotator "NA"]
[PlyCount "92"]
[EventDate "2019.02.20"]
[EventType "swiss"]
[EventCountry "NOR"]
[SourceTitle "playchess.com"]
[Source "ChessBase"]
[SourceQuality "1"]
[TimeControl "5400+30"]

1. e4 {[%emt 0:04:12]} c5 {[%emt 0:00:00]} 2. Nf3 {[%emt 0:00:13]} d6 {[%emt 0:00:05]} 3. d4 {[%emt 0:00:34]} cxd4 {[%emt 0:00:11]} 4. Nxd4 {[%emt 0:00:08]} Nf6 {[%emt 0:00:08]} 5. Nc3 {[%emt 0:00:09]} a6 {[%emt 0:00:07]} 6. Bg5 {[%emt 0:04:01]} Nbd7 {[%emt 0:00:55]} 7. Be2 {[%emt 0:01:19]} e6 {[%emt 0:02:50]} 8. O-O {[%emt 0:03:54]} Be7 {[%emt 0:06:21]} 9. Qd2 {[%emt 0:08:40]} Qc7 {[%emt 0:01:00]} 10. a4 {[%emt 0:01:40]} b6 {[%emt 0:00:40]} 11. Rfe1 {[%emt 0:15:45]} Bb7 {[%emt 0:01:10]} 12. Bf1 {[%emt 0:02:07]} O-O {[%emt 0:00:49]} 13. f3 {[%emt 0:06:51]} Rac8 {[%emt 0:03:47]} 14. Be3 {[%emt 0:02:17]} Rfd8 {[%emt 0:03:34]} 15. Bf2 {[%emt 0:00:42]} Nc5 {[%emt 0:03:06]} 16. g4 {[%emt 0:07:39]} g6 {[%emt 0:03:52]} 17. Rad1 {[%emt 0:15:59]} e5 {[%emt 0:02:40]} 18. Nde2 {[%emt 0:01:00]} d5 {[%emt 0:01:12]} 19. exd5 {[%emt 0:01:53]} Nxd5 {[%emt 0:00:22]} 20. Nxd5 {[%emt 0:00:46]} Rxd5 {[%emt 0:01:50]} 21. Qe3 {[%emt 0:02:03]} Nxa4 {[%emt 0:02:33]} 22. Rxd5 {[%emt 0:02:25]} Bxd5 {[%emt 0:00:07]} 23. Nc3 {[%emt 0:02:05]} Nxc3 {[%emt 0:04:07]} 24. Qxc3 {[%emt 0:00:28]} Qxc3 {[%emt 0:01:35]} 25. bxc3 {[%emt 0:00:01]} Bxf3 {[%emt 0:01:53]} 26. Rxe5 {[%emt 0:03:42]} Bf6 {[%emt 0:00:29]} 27. Bxa6 {[%emt 0:00:31]} Ra8 {[%emt 0:04:37]} 28. Re3 {[%emt 0:00:16]} Bxg4 {[%emt 0:00:15]} 29. Bd3 {[%emt 0:04:25]} Rc8 {[%emt 0:03:25]} 30. Re1 {[%emt 0:01:58]} Bxc3 {[%emt 0:02:06]} 31. Rb1 {[%emt 0:00:27]} Ba5 {[%emt 0:00:33]} 32. Kg2 {[%emt 0:02:32]} Be6 {[%emt 0:01:12]} 33. Kf3 {[%emt 0:02:16]} Bc4 {[%emt 0:01:34]} 34. Ke4 {[%emt 0:00:17]} Bxd3+ {[%emt 0:00:17]} 35. cxd3 {[%emt 0:01:31]} f5+ {[%emt 0:00:59]} 36. Kd5 {[%emt 0:00:27]} Kf7 {[%emt 0:00:52]} 37. d4 {[%emt 0:02:07]} g5 {[%emt 0:01:27]} 38. Kd6 {[%emt 0:00:30]} Rc2 {[%emt 0:00:36]} 39. Bg1 {[%emt 0:00:13]} f4 {[%emt 0:01:35]} 40. d5 {[%emt 0:00:35]} f3 {[%emt 0:00:45]} 41. Bxb6 {[%emt 0:01:16]} Bxb6 {[%emt 0:00:44]} 42. Rxb6 {[%emt 0:00:02]} Rxh2 {[%emt 0:00:19]} 43. Kc7 {[%emt 0:00:57]} Rc2+ {[%emt 0:00:20]} 44. Kb7 {[%emt 0:00:33]} f2 {[%emt 0:00:43]} 45. Rb1 {[%emt 0:00:02]} Rd2 {[%emt 0:00:25]} 46. Kc6 {[%emt 0:00:14]} g4 {[%emt 0:00:08]} 0-1

[Event "Kragero Resort Chess A 2019"]
[Site "Kragero"]
[Date "2019.02.21"]
[Round "2.18"]
[White "Ragnarsson, Dagur"]
[Black "Unneland, Mathias"]
[Result "1-0"]
[ECO "E94"]
[WhiteElo "2361"]
[BlackElo "1890"]
[Annotator "NA"]
[PlyCount "45"]
[EventDate "2019.02.20"]
[EventType "swiss"]
[EventCountry "NOR"]
[SourceTitle "playchess.com"]
[Source "ChessBase"]
[SourceQuality "1"]
[TimeControl "5400+30"]

1. d4 {[%emt 0:01:17]} Nf6 {[%emt 0:00:00]} 2. c4 {[%emt 0:00:07]} g6 {[%emt 0:00:00]} 3. Nc3 {[%emt 0:00:10]} Bg7 {[%emt 0:00:00]} 4. e4 {[%emt 0:00:08]} d6 {[%emt 0:00:00]} 5. Nf3 {[%emt 0:00:05]} O-O {[%emt 0:00:14]} 6. Be2 {[%emt 0:00:05]} e5 {[%emt 0:00:33]} 7. Be3 {[%emt 0:00:37]} exd4 {[%emt 0:00:24]} 8. Nxd4 {[%emt 0:00:08]} Re8 {[%emt 0:00:32]} 9. f3 {[%emt 0:00:10]} Nc6 {[%emt 0:00:52]} 10. O-O {[%emt 0:02:46]} Bd7 {[%emt 0:02:39]} 11. Rc1 {[%emt 0:04:21]} a6 {[%emt 0:03:40]} 12. Qd2 {[%emt 0:03:58]} Qb8 {[%emt 0:05:04]} 13. a3 {[%emt 0:09:46]} Nxd4 {[%emt 0:06:02]} 14. Bxd4 {[%emt 0:00:06]} b5 {[%emt 0:00:53]} 15. Bxf6 {[%emt 0:17:29]} Bxf6 {[%emt 0:01:31]} 16. Nd5 {[%emt 0:00:06]} Bd8 {[%emt 0:00:45]} 17. cxb5 {[%emt 0:00:06]} Bxb5 {[%emt 0:01:35]} 18. Bxb5 {[%emt 0:00:31]} Qxb5 {[%emt 0:01:05]} 19. Rc2 {[%emt 0:08:51]} Rc8 {[%emt 0:01:52]} 20. Rfc1 {[%emt 0:01:01]} f5 {[%emt 0:13:19]} 21. a4 {[%emt 0:13:08]} Qxa4 {[%emt 0:01:41]} 22. Nb6 {[%emt 0:00:15]} cxb6 {[%emt 0:00:47]} 23. Qd5+ {[%emt 0:01:47]} 1-0

[Event "Kragero Resort Chess A 2019"]
[Site "Kragero"]
[Date "2019.02.21"]
[Round "2.19"]
[White "Fossum, Oystein Boyum"]
[Black "Osmak, Iulija"]
[Result "1/2-1/2"]
[ECO "A11"]
[WhiteElo "2250"]
[BlackElo "2394"]
[Annotator "NA"]
[PlyCount "120"]
[EventDate "2019.02.20"]
[EventType "swiss"]
[EventCountry "NOR"]
[SourceTitle "playchess.com"]
[Source "ChessBase"]
[SourceQuality "1"]
[TimeControl "5400+30"]

1. Nf3 {[%emt 0:00:00]} d5 {[%emt 0:00:00]} 2. c4 {[%emt 0:00:06]} c6 {[%emt 0:00:14]} 3. g3 {[%emt 0:00:59]} Nf6 {[%emt 0:02:34]} 4. Bg2 {[%emt 0:00:37]} Bf5 {[%emt 0:02:43]} 5. cxd5 {[%emt 0:06:04]} cxd5 {[%emt 0:00:48]} 6. Qb3 {[%emt 0:00:24]} Nc6 {[%emt 0:00:57]} 7. d3 {[%emt 0:02:52]} e5 {[%emt 0:02:24]} 8. O-O {[%emt 0:02:23]} Qd7 {[%emt 0:03:08]} 9. Bg5 {[%emt 0:12:25]} Be7 {[%emt 0:01:01]} 10. Nc3 {[%emt 0:13:27]} d4 {[%emt 0:26:55]} 11. Bxf6 {[%emt 0:04:24]} Bxf6 {[%emt 0:00:13]} 12. Nd5 {[%emt 0:01:36]} Bd8 {[%emt 0:01:10]} 13. Nb4 {[%emt 0:09:56]} Be6 {[%emt 0:05:06]} 14. Qa4 {[%emt 0:01:11]} Nb8 {[%emt 0:03:59]} 15. Qxd7+ {[%emt 0:08:12]} Nxd7 {[%emt 0:00:28]} 16. Nd2 {[%emt 0:00:44]} Ba5 {[%emt 0:15:56]} 17. a3 {[%emt 0:01:17]} O-O-O {[%emt 0:01:00]} 18. Ne4 {[%emt 0:07:14]} Kb8 {[%emt 0:07:02]} 19. Nd6 {[%emt 0:20:21]} Nc5 {[%emt 0:00:54]} 20. Nxb7 {[%emt 0:00:36]} Nxb7 {[%emt 0:00:52]} 21. Nc6+ {[%emt 0:00:21]} Kc7 {[%emt 0:00:40]} 22. Rfc1 {[%emt 0:01:06]} Kd6 {[%emt 0:01:54]} 23. Nxa7 {[%emt 0:02:18]} Bd5 {[%emt 0:03:57]} 24. b4 {[%emt 0:00:33]} Bb6 {[%emt 0:01:06]} 25. Nb5+ {[%emt 0:00:20]} Ke7 {[%emt 0:01:05]} 26. a4 {[%emt 0:00:42]} Bxg2 {[%emt 0:01:33]} 27. Kxg2 {[%emt 0:00:06]} Nd6 {[%emt 0:08:46]} 28. Nxd6 {[%emt 0:01:49]} Rxd6 {[%emt 0:01:20]} 29. a5 {[%emt 0:00:08]} Bd8 {[%emt 0:01:31]} 30. Rc5 {[%emt 0:02:11]} Ke6 {[%emt 0:01:00]} 31. Rc8 {[%emt 0:00:26]} Kd7 {[%emt 0:01:31]} 32. Rac1 {[%emt 0:00:22]} Re8 {[%emt 0:00:32]} 33. Rb8 {[%emt 0:00:18]} Bg5 {[%emt 0:02:48]} 34. Rb7+ {[%emt 0:00:36]} Ke6 {[%emt 0:00:05]} 35. Rcc7 {[%emt 0:00:48]} Re7 {[%emt 0:01:46]} 36. Rxe7+ {[%emt 0:00:21]} Bxe7 {[%emt 0:00:01]} 37. b5 {[%emt 0:00:27]} Rd7 {[%emt 0:00:04]} 38. Rb8 {[%emt 0:00:41]} Rd8 {[%emt 0:00:17]} 39. Rb7 {[%emt 0:00:19]} Rd7 {[%emt 0:00:17]} 40. Rb8 {[%emt 0:00:16]} Ra7 {[%emt 0:01:51]} 41. a6 {[%emt 0:00:25]} Bd6 {[%emt 0:00:04]} 42. Rh8 {[%emt 0:00:51]} h6 {[%emt 0:00:22]} 43. g4 {[%emt 0:00:22]} Kd5 {[%emt 0:00:16]} 44. Rc8 {[%emt 0:00:16]} Ke6 {[%emt 0:00:56]} 45. h4 {[%emt 0:00:53]} Kd7 {[%emt 0:00:15]} 46. Rg8 {[%emt 0:00:31]} Kc7 {[%emt 0:01:07]} 47. Rxg7 {[%emt 0:00:30]} Kb6 {[%emt 0:00:04]} 48. Rh7 {[%emt 0:00:36]} Kxb5 {[%emt 0:00:55]} 49. Rxh6 {[%emt 0:00:05]} Rxa6 {[%emt 0:00:05]} 50. Rf6 {[%emt 0:01:01]} Be7 {[%emt 0:00:37]} 51. Rxf7 {[%emt 0:00:29]} Bxh4 {[%emt 0:00:06]} 52. Rf5 {[%emt 0:00:16]} Rf6 {[%emt 0:01:03]} 53. Rxe5+ {[%emt 0:00:24]} Kc6 {[%emt 0:00:12]} 54. Rf5 {[%emt 0:00:30]} Rxf5 {[%emt 0:00:56]} 55. gxf5 {[%emt 0:00:03]} Kd5 {[%emt 0:00:05]} 56. e3 {[%emt 0:01:07]} Ke5 {[%emt 0:00:26]} 57. Kf3 {[%emt 0:00:40]} Kxf5 {[%emt 0:00:09]} 58. exd4 {[%emt 0:00:10]} Bf6 {[%emt 0:00:34]} 59. Ke3 {[%emt 0:00:43]} Bg5+ {[%emt 0:00:04]} 60. Kf3 {[%emt 0:00:04]} Bf6 {[%emt 0:00:03] Ke4+ [%emt 00:00:08] Ke5+} 1/2-1/2

[Event "Kragero Resort Chess A 2019"]
[Site "Kragero"]
[Date "2019.02.21"]
[Round "2.20"]
[White "Doluhanova, Evgeniya"]
[Black "Aarnes, Eirik"]
[Result "1/2-1/2"]
[ECO "D00"]
[WhiteElo "2348"]
[BlackElo "1843"]
[Annotator "NA"]
[PlyCount "61"]
[EventDate "2019.02.20"]
[EventType "swiss"]
[EventCountry "NOR"]
[SourceTitle "playchess.com"]
[Source "ChessBase"]
[SourceQuality "1"]
[TimeControl "5400+30"]

1. d4 {[%emt 0:00:36]} d5 {[%emt 0:00:00]} 2. Bf4 {[%emt 0:00:09]} Nf6 {[%emt 0:00:00]} 3. e3 {[%emt 0:00:35]} e6 {[%emt 0:00:05]} 4. Nd2 {[%emt 0:00:06]} c5 {[%emt 0:00:11]} 5. c3 {[%emt 0:00:07]} Bd6 {[%emt 0:00:06]} 6. Bg3 {[%emt 0:01:09]} Qc7 {[%emt 0:00:32]} 7. Ngf3 {[%emt 0:00:10]} Nbd7 {[%emt 0:00:12]} 8. Bd3 {[%emt 0:00:33]} b6 {[%emt 0:03:07]} 9. O-O {[%emt 0:01:40]} O-O {[%emt 0:00:26]} 10. c4 {[%emt 0:07:44]} cxd4 {[%emt 0:09:47]} 11. exd4 {[%emt 0:00:39]} Bb7 {[%emt 0:17:23]} 12. Rc1 {[%emt 0:07:36]} Rac8 {[%emt 0:00:41]} 13. cxd5 {[%emt 0:09:04]} Qxc1 {[%emt 0:02:49]} 14. Qxc1 {[%emt 0:02:20]} Rxc1 {[%emt 0:00:04]} 15. Rxc1 {[%emt 0:00:06]} Bxg3 {[%emt 0:00:07]} 16. dxe6 {[%emt 0:01:55]} Bxf2+ {[%emt 0:09:09]} 17. Kxf2 {[%emt 0:00:11]} fxe6 {[%emt 0:00:04]} 18. Rc7 {[%emt 0:00:28]} Bd5 {[%emt 0:01:39]} 19. Rxa7 {[%emt 0:00:40]} Nb8 {[%emt 0:10:59]} 20. Bc4 {[%emt 0:05:26]} Nc6 {[%emt 0:00:58]} 21. Ra3 {[%emt 0:01:36]} Nb4 {[%emt 0:13:34]} 22. Rb3 {[%emt 0:04:26]} Nc2 {[%emt 0:04:56]} 23. Rxb6 {[%emt 0:01:27]} Nxd4 {[%emt 0:00:11]} 24. Bxd5 {[%emt 0:01:58]} Nxd5 {[%emt 0:00:06]} 25. Rb7 {[%emt 0:01:25]} g5 {[%emt 0:09:38]} 26. h3 {[%emt 0:21:03]} h5 {[%emt 0:00:04]} 27. Kg1 {[%emt 0:04:21]} Ne2+ {[%emt 0:00:16]} 28. Kf2 {[%emt 0:08:55]} Nd4 {[%emt 0:00:04]} 29. Kg1 {[%emt 0:15:07]} Ne2+ {[%emt 0:00:04]} 30. Kf2 {[%emt 0:00:54]} Nd4 {[%emt 0:00:05]} 31. Kg1 {[%emt 0:00:13]} 1/2-1/2

[Event "Kragero Resort Chess A 2019"]
[Site "Kragero"]
[Date "2019.02.21"]
[Round "2.21"]
[White "Mashinskaya, Iulia"]
[Black "Sidali, Elias Hulleberg"]
[Result "1/2-1/2"]
[ECO "D01"]
[WhiteElo "2261"]
[BlackElo "1840"]
[Annotator "NA"]
[PlyCount "70"]
[EventDate "2019.02.20"]
[EventType "swiss"]
[EventCountry "NOR"]
[SourceTitle "playchess.com"]
[Source "ChessBase"]
[SourceQuality "1"]
[TimeControl "5400+30"]

1. d4 {[%emt 0:01:35]} Nf6 {[%emt 0:00:00]} 2. Nc3 {[%emt 0:00:09]} d5 {[%emt 0:00:00]} 3. Bg5 {[%emt 0:00:12]} Nbd7 {[%emt 0:00:00]} 4. e3 {[%emt 0:05:25]} h6 {[%emt 0:00:00]} 5. Bf4 {[%emt 0:01:21]} a6 {[%emt 0:02:10]} 6. Nf3 {[%emt 0:02:07]} e6 {[%emt 0:01:05]} 7. Bd3 {[%emt 0:06:17]} c5 {[%emt 0:00:11]} 8. O-O {[%emt 0:04:18]} Be7 {[%emt 0:02:05]} 9. Re1 {[%emt 0:06:55]} O-O {[%emt 0:02:51]} 10. Ne5 {[%emt 0:05:28]} c4 {[%emt 0:08:29]} 11. Bf1 {[%emt 0:12:02]} Bb4 {[%emt 0:00:53]} 12. Nxd7 {[%emt 0:08:42]} Bxd7 {[%emt 0:01:04]} 13. Be5 {[%emt 0:08:12]} Bxc3 {[%emt 0:04:08]} 14. Bxf6 {[%emt 0:02:17]} Qxf6 {[%emt 0:01:00]} 15. bxc3 {[%emt 0:00:06]} Qg6 {[%emt 0:07:06]} 16. Rb1 {[%emt 0:09:20]} b5 {[%emt 0:00:21]} 17. f4 {[%emt 0:05:46]} f5 {[%emt 0:00:55]} 18. Be2 {[%emt 0:00:26]} Qf6 {[%emt 0:02:58]} 19. Rf1 {[%emt 0:06:50]} Be8 {[%emt 0:00:55]} 20. g3 {[%emt 0:01:55]} Qe7 {[%emt 0:01:52]} 21. Qc1 {[%emt 0:00:31]} g5 {[%emt 0:01:12]} 22. Kf2 {[%emt 0:02:12]} Kg7 {[%emt 0:01:47]} 23. Rh1 {[%emt 0:01:33]} g4 {[%emt 0:00:26]} 24. h3 {[%emt 0:00:49]} h5 {[%emt 0:00:08]} 25. Qb2 {[%emt 0:02:35]} Bc6 {[%emt 0:02:32]} 26. hxg4 {[%emt 0:00:56]} hxg4 {[%emt 0:00:03]} 27. Rh4 {[%emt 0:01:04]} Rh8 {[%emt 0:00:15]} 28. Rbh1 {[%emt 0:00:21]} Rxh4 {[%emt 0:02:21]} 29. Rxh4 {[%emt 0:00:02]} Rh8 {[%emt 0:01:00]} 30. Rxh8 {[%emt 0:00:30]} Kxh8 {[%emt 0:00:09]} 31. Qb4 {[%emt 0:03:06]} Qxb4 {[%emt 0:00:12]} 32. cxb4 {[%emt 0:00:05]} Kg7 {[%emt 0:00:13]} 33. c3 {[%emt 0:00:27]} Kh8 {[%emt 0:00:07]} 34. Ke1 {[%emt 0:01:02]} Kg7 {[%emt 0:00:08]} 35. Kd2 {[%emt 0:00:14]} Kf6 {[%emt 0:00:07]} 1/2-1/2

[Event "Kragero Resort Chess A 2019"]
[Site "Kragero"]
[Date "2019.02.21"]
[Round "2.22"]
[White "Hobber, Anders"]
[Black "Harstad, Christian"]
[Result "1-0"]
[ECO "D02"]
[WhiteElo "2312"]
[BlackElo "1948"]
[Annotator "NA"]
[PlyCount "77"]
[EventDate "2019.02.20"]
[EventType "swiss"]
[EventCountry "NOR"]
[SourceTitle "playchess.com"]
[Source "ChessBase"]
[SourceQuality "1"]
[TimeControl "5400+30"]

1. d4 {[%emt 0:02:44]} Nf6 {[%emt 0:00:00]} 2. Bf4 {[%emt 0:00:20]} e6 {[%emt 0:00:00]} 3. e3 {[%emt 0:00:15]} c5 {[%emt 0:03:30]} 4. Nd2 {[%emt 0:00:49]} Nc6 {[%emt 0:01:16]} 5. Ngf3 {[%emt 0:01:26]} d5 {[%emt 0:00:42]} 6. c3 {[%emt 0:00:17]} Bd6 {[%emt 0:00:58]} 7. Bg3 {[%emt 0:00:08]} Bxg3 {[%emt 0:02:14]} 8. hxg3 {[%emt 0:00:28]} Qb6 {[%emt 0:10:11]} 9. Rb1 {[%emt 0:01:39]} Bd7 {[%emt 0:07:54]} 10. Bd3 {[%emt 0:01:42]} cxd4 {[%emt 0:02:25]} 11. exd4 {[%emt 0:01:12]} Qc7 {[%emt 0:04:02]} 12. Qe2 {[%emt 0:01:58]} O-O-O {[%emt 0:04:20]} 13. Ne5 {[%emt 0:02:43]} Nxe5 {[%emt 0:05:54]} 14. dxe5 {[%emt 0:01:13]} Ne8 {[%emt 0:01:03]} 15. f4 {[%emt 0:03:55]} f6 {[%emt 0:16:25]} 16. Nf3 {[%emt 0:02:16]} h6 {[%emt 0:07:01]} 17. O-O {[%emt 0:03:25]} Qc5+ {[%emt 0:04:44]} 18. Qf2 {[%emt 0:12:03]} Qxf2+ {[%emt 0:00:30]} 19. Kxf2 {[%emt 0:00:15]} Rf8 {[%emt 0:08:47]} 20. Ke3 {[%emt 0:01:31]} f5 {[%emt 0:05:04]} 21. Nd4 {[%emt 0:01:34]} Nc7 {[%emt 0:01:07]} 22. Be2 {[%emt 0:02:06]} g5 {[%emt 0:03:46]} 23. Rh1 {[%emt 0:01:50]} Rh8 {[%emt 0:02:02]} 24. Rh2 {[%emt 0:01:16]} gxf4+ {[%emt 0:05:08]} 25. gxf4 {[%emt 0:00:10]} Rdg8 {[%emt 0:00:08]} 26. Rbh1 {[%emt 0:05:34]} Rg6 {[%emt 0:00:19]} 27. Kf2 {[%emt 0:00:38]} a6 {[%emt 0:01:20]} 28. g4 {[%emt 0:07:18]} fxg4 {[%emt 0:01:14]} 29. Kg3 {[%emt 0:00:02]} Bb5 {[%emt 0:01:24]} 30. Nxb5 {[%emt 0:00:25]} axb5 {[%emt 0:00:23]} 31. Bd3 {[%emt 0:00:11]} Rg7 {[%emt 0:00:37]} 32. Rxh6 {[%emt 0:00:03]} Rhg8 {[%emt 0:00:33]} 33. Rh8 {[%emt 0:03:23]} Na6 {[%emt 0:00:32]} 34. f5 {[%emt 0:07:45]} exf5 {[%emt 0:00:34]} 35. Bxf5+ {[%emt 0:00:02]} Kc7 {[%emt 0:00:33]} 36. R1h7 {[%emt 0:02:20]} Rxh7 {[%emt 0:00:40]} 37. Rxh7+ {[%emt 0:00:33]} Kc6 {[%emt 0:00:31]} 38. b4 {[%emt 0:00:38]} Nc7 {[%emt 0:00:33]} 39. Rh6+ {[%emt 0:00:08]} 1-0

[Event "Kragero Resort Chess A 2019"]
[Site "Kragero"]
[Date "2019.02.21"]
[Round "2.23"]
[White "Skotheim, Andreas"]
[Black "Schouten, Mathias Lind"]
[Result "0-1"]
[ECO "A36"]
[WhiteElo "2168"]
[BlackElo "1943"]
[Annotator "NA"]
[PlyCount "69"]
[EventDate "2019.02.20"]
[EventType "swiss"]
[EventCountry "NOR"]
[SourceTitle "playchess.com"]
[Source "ChessBase"]
[SourceQuality "1"]
[TimeControl "5400+30"]

1. c4 {[%emt 0:00:00]} c5 {[%emt 0:00:00]} 2. g3 {[%emt 0:00:00]} Nc6 {[%emt 0:00:00]} 3. Nc3 {[%emt 0:00:41]} g6 {[%emt 0:00:12]} 4. Bg2 {[%emt 0:00:38]} Bg7 {[%emt 0:00:05]} 5. Nf3 {[%emt 0:01:23]} e6 {[%emt 0:00:10]} 6. e4 {[%emt 0:03:11]} Nge7 {[%emt 0:00:15]} 7. O-O {[%emt 0:00:56]} O-O {[%emt 0:00:17]} 8. Ne1 {[%emt 0:04:20]} a6 {[%emt 0:04:31]} 9. a3 {[%emt 0:06:03]} Rb8 {[%emt 0:00:42]} 10. Nc2 {[%emt 0:03:40]} b5 {[%emt 0:08:44]} 11. cxb5 {[%emt 0:22:40]} axb5 {[%emt 0:00:05]} 12. b4 {[%emt 0:00:16]} d5 {[%emt 0:05:35]} 13. exd5 {[%emt 0:08:46]} exd5 {[%emt 0:00:27]} 14. Rb1 {[%emt 0:01:09]} c4 {[%emt 0:03:48]} 15. a4 {[%emt 0:05:12]} bxa4 {[%emt 0:01:02]} 16. b5 {[%emt 0:01:30]} Na7 {[%emt 0:10:04]} 17. Ba3 {[%emt 0:03:57]} Bxc3 {[%emt 0:04:29]} 18. dxc3 {[%emt 0:00:08]} Nxb5 {[%emt 0:00:24]} 19. Bb4 {[%emt 0:12:28]} Be6 {[%emt 0:01:43]} 20. Ra1 {[%emt 0:01:12]} Qd7 {[%emt 0:01:56]} 21. Ne3 {[%emt 0:01:05]} Rfd8 {[%emt 0:01:09]} 22. Qxa4 {[%emt 0:02:08]} Nc6 {[%emt 0:02:28]} 23. Rfd1 {[%emt 0:01:50]} Nxb4 {[%emt 0:02:56]} 24. Qxb4 {[%emt 0:00:07]} Nd4 {[%emt 0:03:16]} 25. Qa3 {[%emt 0:08:50]} Rb3 {[%emt 0:01:58]} 26. Qa2 {[%emt 0:00:09]} Nb5 {[%emt 0:04:33]} 27. Nxd5 {[%emt 0:01:28]} Bxd5 {[%emt 0:04:10]} 28. Bxd5 {[%emt 0:01:05]} Qc7 {[%emt 0:01:56]} 29. Qd2 {[%emt 0:04:39]} Kg7 {[%emt 0:11:33]} 30. Ra4 {[%emt 0:02:10]} Qe5 {[%emt 0:03:46]} 31. Rxc4 {[%emt 0:02:14]} Nxc3 {[%emt 0:04:30]} 32. Rd4 {[%emt 0:00:24]} Ne2+ {[%emt 0:00:36]} 33. Kf1 {[%emt 0:00:15]} Nxd4 {[%emt 0:00:03]} 34. Bxb3 {[%emt 0:00:34]} Qe4 {[%emt 0:00:34]} 35. f4 {[%emt 0:02:22]} 0-1